fUST/lending_fUST_20250310
["ID","MTS","AMOUNT","RATE_DAILY","PERIOD"]
[355806081,1741596648721,-500.0,0.00055068,120]
[355806083,1741596648732,-500.0,0.00055068,120]
[355806085,1741596648744,-500.0,0.00055068,120]
[355806087,1741596648756,-500.0,0.00055068,120]
[355806088,1741596648767,-500.0,0.00055068,120]
[355806089,1741596648777,-500.0,0.00055068,120]
[355806090,1741596648789,-500.0,0.00055068,120]
[355806091,1741596648800,-500.0,0.00055068,120]
[355806092,1741596648812,-500.0,0.00055068,120]
[355806093,1741596648823,-500.0,0.00055068,120]
[355806094,1741596648836,-500.0,0.00055068,120]
[355806095,1741596648849,-1000.0,0.00055068,5]
[355806096,1741596648859,-576.08586487,0.00055068,120]
[355806097,1741596648870,-500.0,0.00055068,120]
[355806098,1741596648882,-500.0,0.00055068,120]
[355806099,1741596648896,-500.0,0.00055068,120]
[355806100,1741596648904,-500.0,0.00055068,120]
[355806101,1741596648915,-500.0,0.00055068,120]
[355806102,1741596648925,-500.0,0.00055068,120]
[355806103,1741596648934,-151.0,0.00055068,120]
[355806104,1741596648945,-500.0,0.00055068,120]
[355806105,1741596648955,-151.0,0.00055068,120]
[355806106,1741596648965,-500.0,0.00055068,120]
[355806107,1741596648975,-815.44,0.00055068,120]
[355806108,1741596648985,-500.0,0.00055068,120]
[355806109,1741596648997,-865.23,0.00055068,120]
[355806110,1741596649008,-607.55,0.00055068,120]
[355806111,1741596649023,-500.0,0.00055068,120]
[355806112,1741596649032,-500.0,0.00055068,120]
[355806113,1741596649043,-500.0,0.00055068,120]
[355806114,1741596649053,-511.91,0.00055068,120]
[355806115,1741596649065,-500.0,0.00055068,120]
[355806116,1741596649076,-516.19129705,0.00055068,7]
[355806117,1741596649087,-500.0,0.00055068,120]
[355806118,1741596649101,-500.0,0.00055068,120]
[355806119,1741596649110,-500.0,0.00055068,120]
[355806120,1741596649120,-500.0,0.00055068,120]
[355806121,1741596649130,-151.0,0.00055068,120]
[355806122,1741596649140,-500.0,0.00055068,120]
[355806123,1741596649151,-151.0,0.00055068,120]
[355806124,1741596649161,-500.0,0.00055068,2]
[355806125,1741596649171,-500.0,0.00055068,120]
[355806126,1741596649182,-500.0,0.00055068,120]
[355806127,1741596649193,-884.21,0.00055068,120]
[355806128,1741596649204,-456.21715287,0.00055068,120]
[355806129,1741596649216,-535.32893725,0.00055068,120]
[355806130,1741596649227,-500.0,0.00055068,120]
[355806131,1741596649237,-500.0,0.00055068,120]
[355806132,1741596649248,-500.0,0.00055068,120]
[355806133,1741596649259,-500.0,0.00055068,120]
[355806134,1741596649269,-500.0,0.00055068,120]
[355806135,1741596649279,-500.0,0.00055068,120]
[355806136,1741596649289,-500.0,0.00055068,120]
[355806137,1741596649300,-500.0,0.00055068,120]
[355806138,1741596649310,-549.75371288,0.00055068,120]
[355806139,1741596649321,-516.69251311,0.00055068,120]
[355806140,1741596649331,-500.0,0.00055068,120]
[355806141,1741596649340,-646.1,0.00055068,120]
[355806142,1741596649353,-500.0,0.00055068,120]
[355806143,1741596649440,-500.0,0.00055068,120]
[355806144,1741596649451,-500.0,0.00055068,120]
[355806145,1741596649462,-1304.58,0.00055068,120]
[355806146,1741596649472,-3058.13,0.00055068,120]
[355806147,1741596649483,-500.0,0.00055068,120]
[355806148,1741596649493,-567.39220537,0.00055068,120]
[355806149,1741596649502,-500.0,0.00055068,120]
[355806150,1741596649512,-500.0,0.00055068,120]
[355806151,1741596649521,-257.13933406,0.00055068,120]
[355806152,1741596649531,-500.0,0.00055068,120]
[355806153,1741596649541,-500.0,0.00055068,120]
[355806154,1741596649551,-521.05,0.00055068,120]
[355806155,1741596649561,-500.0,0.00055068,120]
[355806156,1741596649571,-500.0,0.00055068,120]
[355806157,1741596649581,-500.0,0.00055068,120]
[355806158,1741596649591,-500.0,0.00055068,120]
[355806159,1741596649603,-151.0,0.00055068,120]
[355806160,1741596649613,-542.90298564,0.00055068,120]
[355806161,1741596649623,-500.0,0.00055068,120]
[355806162,1741596649632,-533.35605914,0.00055068,120]
[355806163,1741596649642,-500.0,0.00055068,120]
[355806164,1741596649652,-500.0,0.00055068,120]
[355806165,1741596649662,-500.0,0.00055068,120]
[355806166,1741596649672,-500.0,0.00055068,120]
[355806167,1741596649684,-500.0,0.00055068,120]
[355806168,1741596649693,-500.0,0.00055068,120]
[355806169,1741596649704,-500.0,0.00055068,120]
[355806170,1741596649714,-392.9451356,0.00055068,120]
[355806171,1741596649723,-500.0,0.00055068,120]
[355806172,1741596649733,-828.93,0.00055068,2]
[355806173,1741596649744,-500.0,0.00055068,120]
[355806174,1741596649753,-692.66,0.00055068,120]
[355806175,1741596649763,-509.80530722,0.00055068,120]
[355806176,1741596649773,-500.0,0.00055068,120]
[355806177,1741596649783,-500.0,0.00055068,120]
[355806178,1741596649794,-500.0,0.00055068,120]
[355806179,1741596649804,-500.0,0.00055068,120]
[355806180,1741596649814,-500.0,0.00055068,120]
[355806181,1741596649825,-696.14,0.00055068,120]
[355806182,1741596649835,-500.0,0.00055068,120]
[355806183,1741596649846,-500.0,0.00055068,120]
[355806184,1741596649855,-851.99,0.00055068,120]
[355806185,1741596649865,-516.42576219,0.00055068,120]
[355806186,1741596649875,-398.02969366,0.00055068,120]
[355806187,1741596649885,-189.43100651,0.00055068,120]
[355806188,1741596649894,-500.0,0.00055068,120]
[355806189,1741596649905,-500.0,0.00055068,120]
[355806190,1741596649914,-500.0,0.00055068,120]
[355806191,1741596649924,-500.0,0.00055068,120]
[355806192,1741596649934,-500.0,0.00055068,120]
[355806193,1741596649943,-688.31,0.00055068,120]
[355806194,1741596649953,-500.0,0.00055068,120]
[355806195,1741596649963,-500.0,0.00055068,120]
[355806196,1741596649973,-1472.77,0.00055068,120]
[355806197,1741596649983,-2110.39,0.00055068,120]
[355806198,1741596649992,-325.18948198,0.00055068,120]
[355806199,1741596650002,-500.0,0.00055068,120]
[355806200,1741596650013,-500.0,0.00055068,120]
[355806201,1741596650024,-500.0,0.00055068,120]
[355806202,1741596650038,-540.09584521,0.00055068,120]
[355806203,1741596650047,-1450.8,0.00055068,120]
[355806204,1741596650057,-500.0,0.00055068,21]
[355806205,1741596650068,-1877.76,0.00055068,120]
[355806206,1741596650078,-500.0,0.00055068,120]
[355806207,1741596650087,-1813.16,0.00055068,120]
[355806208,1741596650097,-992.65,0.00055068,120]
[355806209,1741596650108,-1550.78,0.00055068,120]
[355806210,1741596650118,-151.0,0.00055068,120]
[355806211,1741596650128,-151.0,0.00055068,120]
[355806212,1741596650138,-500.0,0.00055068,120]
[355806213,1741596650148,-2572.37,0.00055068,120]
[355806214,1741596650157,-1577.16,0.00055068,120]
[355806215,1741596650167,-500.0,0.00055068,120]
[355806216,1741596650177,-1066.71,0.00055068,120]
[355806217,1741596650186,-801.97,0.00055068,120]
[355806218,1741596650196,-500.0,0.00055068,120]
[355806219,1741596650206,-500.0,0.00055068,120]
[355806220,1741596650215,-500.0,0.00055068,120]
[355806221,1741596650226,-151.0,0.00055068,120]
[355806222,1741596650236,-151.0,0.00055068,120]
[355806223,1741596650247,-500.0,0.00055068,120]
[355806224,1741596650257,-539.20569999,0.00055068,120]
[355806225,1741596650269,-1004.38,0.00055068,120]
[355806226,1741596650279,-231.469801,0.00055068,120]
[355806227,1741596650290,-500.0,0.00055068,120]
[355806228,1741596650300,-500.0,0.00055068,120]
[355806229,1741596650309,-500.0,0.00055068,120]
[355806230,1741596650319,-645.81,0.00055068,120]
[355806231,1741596650329,-1142.38,0.00055068,120]
[355806232,1741596650340,-506.30044374,0.00055068,120]
[355806233,1741596650351,-500.0,0.00055068,120]
[355806234,1741596650360,-500.0,0.00055068,120]
[355806235,1741596650370,-500.0,0.00055068,120]
[355806236,1741596650379,-500.0,0.00055068,120]
[355806237,1741596650389,-513.84124047,0.00055068,120]
[355806238,1741596650400,-612.35,0.00055068,120]
[355806239,1741596650409,-500.0,0.00055068,120]
[355806240,1741596650419,-500.0,0.00055068,120]
[355806241,1741596650428,-741.28,0.00055068,120]
[355806242,1741596650437,-683.0,0.00055068,120]
[355806243,1741596650447,-199.372977,0.00055068,120]
[355806244,1741596650457,-199.372977,0.00055068,120]
[355806245,1741596650466,-2660.17,0.00055068,120]
[355806246,1741596650476,-199.372977,0.00055068,120]
[355806247,1741596650486,-51310.55,0.00055068,7]
[355806248,1741596650495,-199.372977,0.00055068,120]
[355806249,1741596650503,-500.0,0.00055068,120]
[355806250,1741596650512,-500.0,0.00055068,120]
[355806251,1741596650522,-1041.66,0.00055068,120]
[355806252,1741596650532,-255.113008,0.00055068,120]
[355806253,1741596650541,-500.0,0.00055068,120]
[355806254,1741596650551,-500.0,0.00055068,120]
[355806255,1741596650635,-500.0,0.00055068,120]
[355806256,1741596650646,-500.0,0.00055068,120]
[355806257,1741596650656,-500.0,0.00055068,120]
[355806258,1741596650666,-519.37751715,0.00055068,120]
[355806259,1741596650675,-1039.43,0.00055068,120]
[355806260,1741596650685,-500.0,0.00055068,120]
[355806261,1741596650694,-500.0,0.00055068,120]
[355806262,1741596650704,-500.0,0.00055068,120]
[355806263,1741596650713,-529.04444525,0.00055068,120]
[355806264,1741596651330,-81.93555475,0.00055068,120]
[355806265,1741596651340,-300.58850987,0.00055068,120]
[355806266,1741596651905,-500.0,0.00055068,120]
[355806274,1741597774118,-229.563854,0.0003589,2]
[355806275,1741597774140,-166.5834583,0.00041111,2]
[355806276,1741597774163,-229.563854,0.00041211,2]
[355806277,1741597774185,-1083.34244226,0.000419,9]
[355806278,1741597774206,-52.69057577,0.00042083,2]
[355806296,1741597832877,-113.8928825,0.00042083,2]
[355806297,1741597832888,-166.58345827,0.00043055,2]
[355806298,1741597832898,-550.0,0.00043086,5]
[355806299,1741597832908,-423.4914171,0.00043087,2]
[355806300,1741597832917,-500.0,0.00043087,2]
[355806301,1741597832929,-500.0,0.00043087,2]
[355806302,1741597832938,-500.0,0.00043087,31]
[355806303,1741597832949,-500.0,0.00043087,2]
[355806304,1741597832958,-500.0,0.00043087,2]
[355806306,1741597832967,-500.0,0.00043087,2]
[355806308,1741597832976,-500.0,0.00043087,2]
[355806309,1741597832985,-500.0,0.00043087,2]
[355806310,1741597832995,-500.0,0.00043087,2]
[355806311,1741597833005,-500.0,0.00043087,2]
[355806312,1741597833015,-500.0,0.00043087,2]
[355806313,1741597833024,-500.0,0.00043087,2]
[355806314,1741597833034,-500.0,0.00043087,2]
[355806315,1741597833043,-500.0,0.00043087,2]
[355806316,1741597833053,-500.0,0.00043087,2]
[355806317,1741597833062,-500.0,0.00043087,2]
[355806318,1741597833072,-481.63151857,0.00043087,2]
[355806319,1741597833082,-11708.50755834,0.00043088,2]
[355806400,1741597846695,-721.68801461,0.00043088,2]
[355806412,1741598955137,-3438.19654451,0.0003499,30]
[355806474,1741599032021,-150.0,0.0003289,2]
[355806475,1741599032031,-263.59346751,0.0003499,30]
[355806476,1741599032041,-218.278786,0.0003589,2]
[355806477,1741599032051,-174.73187753,0.00035999,2]
[355806478,1741599032063,-225.26812247,0.00035999,2]
[355806479,1741599032077,-54.56209225,0.00036,30]
[355806480,1741599032091,-4738.47951339,0.00036,30]
[355806481,1741599032101,-184.365282,0.00036,7]
[355806482,1741599032110,-150.0,0.0003789,2]
[355806483,1741599032120,-333.0,0.00038559,5]
[355806484,1741599032130,-166.58345827,0.0003872,2]
[355806485,1741599032139,-184.92692767,0.00038721,112]
[355806486,1741599032149,-622.2,0.00038799,2]
[355806488,1741599032159,-16831.63998196,0.00038821,2]
[355806490,1741599032169,-24900.0,0.00038822,2]
[355806492,1741599032178,-166.58345827,0.00039198,2]
[355806494,1741599032188,-166.58345827,0.00039676,2]
[355806496,1741599032198,-811.02198456,0.00039998,2]
[355806498,1741599032209,-242.0,0.0004,14]
[355806501,1741599032219,-811.02198456,0.00040124,2]
[355806504,1741599032229,-166.58345827,0.00040155,2]
[355806507,1741599032237,-811.02198456,0.00040483,2]
[355806510,1741599032247,-166.58345827,0.00040633,2]
[355806514,1741599032256,-811.02198456,0.00040771,2]
[355806517,1741599032266,-576.0612011,0.00041064,2]
[355806521,1741599032280,-234.96078346,0.00041064,2]
[355806524,1741599032287,-91.59750332,0.00041086,2]
[355806527,1741599032297,-154.2875485,0.00041086,2]
[355806530,1741599032305,-166.58345827,0.00041111,2]
[355806532,1741599032314,-218.278786,0.00041211,2]
[355806536,1741599032324,-500.0,0.00041233,7]
[355806538,1741599032333,-508.51706842,0.00041233,10]
[355806540,1741599032348,-500.0,0.00041233,5]
[355806542,1741599032356,-209.16619909,0.00041233,10]
[355806545,1741599032366,-500.0,0.00041233,10]
[355806547,1741599032376,-500.0,0.00041233,10]
[355806549,1741599032387,-500.0,0.00041233,10]
[355806552,1741599032397,-500.0,0.00041233,10]
[355806556,1741599032408,-500.0,0.00041233,10]
[355806558,1741599032418,-500.0,0.00041233,2]
[355806559,1741599032428,-500.0,0.00041233,2]
[355806561,1741599032438,-781.878081,0.00041346,2]
[355806565,1741599032452,-29.14390356,0.00041346,2]
[355806568,1741599032463,-523.141244,0.0004143,2]
[355806752,1741599037892,-637.37913647,0.000359,7]
[355806904,1741599040158,-448.25283375,0.000359,7]
[355806906,1741599040169,-500.0,0.0003882,2]
[355806908,1741599040178,-548.16315186,0.0003882,2]
[355806910,1741599040189,-500.0,0.0003882,2]
[355806912,1741599040199,-500.0,0.0003882,2]
[355806914,1741599040208,-500.0,0.0003882,2]
[355806917,1741599040218,-500.0,0.0003882,2]
[355806920,1741599040227,-287.88074056,0.0004143,2]
[355806922,1741599040236,-185.91503156,0.000417,2]
[355806925,1741599040246,-500.0,0.0004179,30]
[355806928,1741599040256,-432.48,0.0004179,30]
[355806931,1741599040266,-1076.47,0.0004179,10]
[355806932,1741599040275,-897.06,0.0004179,10]
[355806933,1741599040284,-747.55,0.0004179,10]
[355806934,1741599040293,-2785.63576572,0.0004179,3]
[355806935,1741599040303,-54.33114927,0.00041799,2]
[355806973,1741599042957,-945.66885073,0.00041799,2]
[355806974,1741599042967,-1000.0,0.00041799,2]
[355806975,1741599042977,-1000.0,0.00041799,2]
[355806976,1741599042986,-1000.0,0.00041799,2]
[355806977,1741599042996,-1000.0,0.00041799,2]
[355806978,1741599043006,-1000.0,0.00041799,2]
[355806979,1741599043016,-1000.0,0.00041799,2]
[355806980,1741599043026,-642.26742692,0.00041799,2]
[355806981,1741599043035,-50000.0,0.000418,15]
[355806982,1741599043045,-50000.0,0.000418,5]
[355806983,1741599043054,-17357.39097659,0.000418,15]
[355807020,1741599046065,-32642.60902341,0.000418,15]
[355807022,1741599046075,-162.78,0.000418,30]
[355807024,1741599046084,-500.0,0.00041832,42]
[355807025,1741599046094,-811.02198456,0.00041832,2]
[355807026,1741599046105,-811.02198456,0.00042113,2]
[355807028,1741599046114,-811.02198456,0.00042393,2]
[355807030,1741599046125,-358.31033537,0.00042465,120]
[355807032,1741599046135,-811.02198456,0.00042574,2]
[355807033,1741599046145,-928.54525524,0.0004299,3]
[355807035,1741599046155,-200.0,0.00043,2]
[355807036,1741599046164,-200.0,0.00043,7]
[355807038,1741599046174,-187.0,0.00043,10]
[355807041,1741599046184,-187.0,0.00043,3]
[355807042,1741599046194,-187.0,0.00043,4]
[355807045,1741599046204,-27072.73805867,0.00043,120]
[355807078,1741599446961,-270.2899235,0.00033,2]
[355807080,1741599562407,500.0,0.00035,2]
[355807081,1741599679189,200.0,0.00035,2]
[355807082,1741599745576,200.0,0.00035,2]
[355807092,1741599821153,222.0,0.00035,2]
[355807099,1741599864590,347.08641841,0.00032487,2]
[355807108,1741600187577,150.0,0.000329,2]
[355807163,1741600232408,-571.74554011,0.0003585,2]
[355807165,1741600232418,-204.411625,0.0003589,2]
[355807167,1741600232428,-184.92692765,0.00037875,107]
[355807169,1741600232438,-1049.44423786,0.000379,8]
[355807171,1741600232448,-1496.56053176,0.000379,2]
[355807173,1741600232458,-150.0,0.000379,2]
[355807175,1741600232468,-500.0,0.00037974,2]
[355807177,1741600232478,-500.0,0.00037974,2]
[355807178,1741600232487,-595.0,0.00037974,2]
[355807181,1741600232497,-500.0,0.00037974,2]
[355807182,1741600232506,-500.0,0.00037974,2]
[355807184,1741600232515,-454.81631519,0.00037974,2]
[355807186,1741600232524,-500.0,0.00037974,2]
[355807188,1741600232533,-500.0,0.00037974,2]
[355807190,1741600232544,-499.99999999,0.00037974,2]
[355807192,1741600232553,-23915.64398381,0.00037975,2]
[355807194,1741600232565,-984.35601619,0.00037975,2]
[355807196,1741600232574,-500.0,0.00038,5]
[355807198,1741600232584,-500.0,0.00038,5]
[355807200,1741600232593,-500.0,0.00038042,2]
[355807202,1741600232602,-1251.27530585,0.00041201,2]
[355807204,1741600232612,-204.411625,0.00041211,2]
[355807206,1741600232622,-150.0,0.00041799,30]
[355807208,1741600232632,-811.02198456,0.00042769,2]
[355807210,1741600232641,-22927.26194133,0.00043,120]
[355807212,1741600232651,-250.0,0.00043,10]
[355807214,1741600232661,-150.0,0.00043169,30]
[355807216,1741600232670,-776.46893644,0.00043479,7]
[355807218,1741600232680,-308.72043171,0.00043479,5]
[355807220,1741600232689,-469.99157965,0.00043715,2]
[355807222,1741600232698,-1000.0,0.00043836,120]
[355807224,1741600232708,-184.92692765,0.00043938,120]
[355807226,1741600232718,-1968.0,0.00045,120]
[355807228,1741600232727,-377.74987718,0.00045,30]
[355807230,1741600232737,-204.411625,0.00046532,2]
[355807232,1741600232747,-2000.0,0.00048,30]
[355807234,1741600232757,-692.37693105,0.00048,2]
[355807236,1741600232767,-791.7457157,0.0004849,4]
[355807238,1741600232776,-1453.87,0.0004849,10]
[355807240,1741600232785,-1211.56,0.0004849,10]
[355807242,1741600232795,-50000.0,0.000485,30]
[355807244,1741600232804,-161.83,0.000485,30]
[355807246,1741600232813,-1583.4914314,0.0004889,4]
[355807248,1741600232823,-3535.9,0.00048899,120]
[355807250,1741600232834,-531.50635671,0.00048899,120]
[355807252,1741600232844,-50000.0,0.000489,30]
[355807254,1741600232853,-9848.0,0.000489,30]
[355807255,1741600232863,-252.15,0.000489,30]
[355807257,1741600232873,-5020.36,0.000489,30]
[355807259,1741600232883,-1000.0,0.00049315,30]
[355807262,1741600232892,-153.72,0.000494,45]
[355807263,1741600232902,-492.0,0.00049532,6]
[355807265,1741600232912,-8040.55138,0.00049999,30]
[355807267,1741600232921,-187.0,0.0005,15]
[355807269,1741600232931,-187.0,0.0005,20]
[355807271,1741600232941,-2506.27814953,0.0005,7]
[355807273,1741600232951,-1000.0,0.0005,120]
[355807282,1741600233062,-3603.94779655,0.0005,10]
[355807283,1741600233073,-184.92692765,0.00050001,120]
[355807284,1741600233086,-1000.0,0.00050547,120]
[355807285,1741600233096,-1000.0,0.00050547,120]
[355807286,1741600233108,-1000.0,0.00050547,120]
[355807287,1741600233120,-519.93929613,0.00050547,120]
[355807288,1741600233131,-1675.02801666,0.00050724,2]
[355807289,1741600233149,-2045.975,0.00050752,30]
[355807290,1741600233160,-2045.975,0.00050752,30]
[355807291,1741600233172,-186.42,0.000508,30]
[355807292,1741600233183,-1583.4914314,0.00050814,4]
[355807293,1741600233194,-791.7457157,0.00050814,4]
[355807294,1741600233204,-10579.06131551,0.00050823,71]
[355807295,1741600233216,-89578.66784049,0.00050824,71]
[355807297,1741600233226,-500.0,0.00050824,3]
[355807298,1741600233236,-7449.35280976,0.00050824,2]
[355807299,1741600233246,-55555.0,0.00050824,120]
[355807300,1741600233256,-297.08484719,0.00050894,2]
[355807302,1741600233267,-363.47,0.000509,2]
[355807304,1741600233277,-791.7457157,0.00050904,4]
[355807306,1741600233287,-151.0,0.00050924,120]
[355807308,1741600233298,-151.0,0.00050924,120]
[355807310,1741600233309,-151.0,0.00050924,120]
[355807312,1741600233319,-151.0,0.00050924,120]
[355807314,1741600233329,-151.0,0.00050924,120]
[355807316,1741600233339,-194.265488,0.00050924,120]
[355807318,1741600233348,-151.0,0.00050924,120]
[355807320,1741600233358,-255.088096,0.00050924,120]
[355807322,1741600233368,-151.0,0.00050924,120]
[355807324,1741600233378,-151.0,0.00050924,120]
[355807326,1741600233389,-151.0,0.00050924,120]
[355807328,1741600233399,-151.0,0.00050924,120]
[355807330,1741600233410,-285.311124,0.00050924,120]
[355807332,1741600233420,-154.905345,0.00050924,120]
[355807334,1741600233431,-151.0,0.00050924,120]
[355807336,1741600233441,-151.0,0.00050924,120]
[355807338,1741600233451,-151.0,0.00050924,120]
[355807340,1741600233461,-151.0,0.00050924,120]
[355807342,1741600233471,-151.0,0.00050924,120]
[355807344,1741600233481,-220.44491,0.00050924,120]
[355807346,1741600233491,-172.289373,0.00050924,120]
[355807348,1741600233501,-151.0,0.00050924,120]
[355807349,1741600233511,-151.0,0.00050924,120]
[355807351,1741600233521,-151.0,0.00050924,120]
[355807352,1741600233533,-151.0,0.00050924,120]
[355807353,1741600233543,-151.0,0.00050924,120]
[355807354,1741600233554,-151.0,0.00050924,120]
[355807355,1741600233565,-151.0,0.00050924,120]
[355807356,1741600233575,-169.827072,0.00050924,120]
[355807357,1741600233585,-151.0,0.00050924,120]
[355807358,1741600233594,-151.0,0.00050924,120]
[355807359,1741600233604,-151.0,0.00050924,120]
[355807360,1741600233614,-151.0,0.00050924,120]
[355807361,1741600233625,-151.0,0.00050924,120]
[355807362,1741600233635,-186.752712,0.00050924,120]
[355807363,1741600233647,-151.0,0.00050924,120]
[355807364,1741600233657,-151.0,0.00050924,120]
[355807365,1741600233669,-151.0,0.00050924,120]
[355807366,1741600233680,-151.0,0.00050924,120]
[355807367,1741600233690,-151.0,0.00050924,120]
[355807368,1741600233701,-151.0,0.00050924,120]
[355807369,1741600233711,-151.0,0.00050924,120]
[355807370,1741600233723,-269.407892,0.00050924,120]
[355807371,1741600233734,-151.0,0.00050924,120]
[355807372,1741600233745,-151.0,0.00050924,120]
[355807373,1741600233755,-151.0,0.00050924,120]
[355807374,1741600233765,-151.0,0.00050924,120]
[355807375,1741600233775,-151.0,0.00050924,120]
[355807376,1741600233785,-151.0,0.00050924,120]
[355807377,1741600233795,-151.0,0.00050924,120]
[355807378,1741600233804,-151.0,0.00050924,120]
[355807379,1741600233814,-231.469801,0.00050924,120]
[355807380,1741600233824,-255.113008,0.00050924,120]
[355807381,1741600233834,-151.0,0.00050924,120]
[355807382,1741600233844,-189.404328,0.00050924,120]
[355807383,1741600233854,-189.404328,0.00050924,120]
[355807384,1741600233864,-189.404328,0.00050924,120]
[355807385,1741600233875,-189.404328,0.00050924,120]
[355807386,1741600233885,-189.404328,0.00050924,120]
[355807387,1741600233896,-189.404328,0.00050924,120]
[355807388,1741600233906,-189.404328,0.00050924,120]
[355807389,1741600233916,-189.404328,0.00050924,120]
[355807390,1741600233927,-189.404328,0.00050924,120]
[355807391,1741600233937,-189.404328,0.00050924,120]
[355807392,1741600233947,-189.404328,0.00050924,120]
[355807393,1741600233958,-189.404328,0.00050924,120]
[355807394,1741600233967,-189.404328,0.00050924,120]
[355807395,1741600233978,-189.404328,0.00050924,120]
[355807396,1741600233987,-189.404328,0.00050924,120]
[355807397,1741600233997,-189.404328,0.00050924,120]
[355807398,1741600234007,-449.874722,0.00050924,120]
[355807399,1741600234017,-449.874722,0.00050924,120]
[355807400,1741600234027,-449.874722,0.00050924,120]
[355807401,1741600234037,-449.874722,0.00050924,120]
[355807402,1741600234047,-449.874722,0.00050924,120]
[355807403,1741600234058,-449.874722,0.00050924,120]
[355807404,1741600234068,-449.874722,0.00050924,120]
[355807405,1741600234078,-449.874722,0.00050924,120]
[355807406,1741600234090,-449.874722,0.00050924,120]
[355807407,1741600234101,-449.874722,0.00050924,120]
[355807408,1741600234112,-449.874722,0.00050924,120]
[355807409,1741600234122,-449.874722,0.00050924,120]
[355807410,1741600234133,-449.874722,0.00050924,120]
[355807411,1741600234145,-449.874722,0.00050924,120]
[355807412,1741600234159,-449.874722,0.00050924,120]
[355807413,1741600234170,-449.874722,0.00050924,120]
[355807414,1741600234180,-5000.0,0.00050924,120]
[355807415,1741600234191,-5000.0,0.00050924,120]
[355807416,1741600234202,-5000.0,0.00050924,120]
[355807417,1741600234213,-5000.0,0.00050924,120]
[355807418,1741600234224,-5000.0,0.00050924,120]
[355807419,1741600234235,-5000.0,0.00050924,120]
[355807420,1741600234246,-5000.0,0.00050924,120]
[355807421,1741600234257,-5000.0,0.00050924,120]
[355807422,1741600234268,-10020.96370652,0.00050924,120]
[355807423,1741600234279,-183811.08038,0.00050924,30]
[355807424,1741600234289,-188370.79295231,0.00050924,120]
[355807425,1741600234302,-2511.36127717,0.00050924,7]
[355807426,1741600234317,-1595.0,0.00050924,7]
[355807433,1741600237996,-398.0,0.00047469,2]
[355807434,1741600238006,-108.28571921,0.00050469,2]
[355807451,1741600240239,-289.71428079,0.00050469,2]
[355807452,1741600240249,-609.28571921,0.00050914,10]
[355807453,1741600240300,-400.34428079,0.00050914,10]
[355807454,1741600240310,-411.61161921,0.00050924,7]
[355807517,1741600243711,-308.83028487,0.00050924,7]
[355807543,1741600356399,-50000.0,0.00050921,7]
[355807545,1741600383582,-50000.0,0.00050921,7]
[355807546,1741600409507,643.49,0.0003,2]
[355807548,1741600437737,3870.21337256,0.0003,3]
[355807549,1741600439644,192.0,0.0003,2]
[355807550,1741600521839,192.0,0.0003,3]
[355807551,1741600830839,10000.0,0.00025,10]
[355807552,1741600838458,10000.0,0.00025,10]
[355807553,1741600848205,10000.0,0.00025,10]
[355807554,1741600855111,10000.0,0.00025,10]
[355807555,1741600863341,10000.0,0.0003,2]